Cogmind - Beta 11 X7 @@@ ROGUE MODE // 2021.10.03 @ 05:28:54 Player: leiavoia Result: Destroyed by H-88 Terminator with Heavy Machine Gun Performance ------------- Evolutions (9) 4500 Regions Visited (19) 3800 Robots Destroyed (257) 1285 Value Destroyed (12922) 12922 Prototype IDs (35) 700 Alien Tech Used (0) 0 Bonus (2097) 2097 TOTAL SCORE: 25304 Bonus ------- High Alert Combat Kills 1549 Follower Combat Kills 1176 Network Hubs Disabled 200 Aligned with FarCom 300 Met R17 at Cetus 500 Friendly Fire -1628 Cogmind --------- Core Integrity 0/1600 Matter 300/300 Energy 100/100 System Corruption 25% Temperature Cool (0) Movement Core (50) Location -1/Access Parts ------- > --- POWER (1) -------- (None) > --- PROPULSION (4) --- (None) > --- UTILITY (12) ----- (None) > --- WEAPON (8) ------- (None) > --- INVENTORY (5) ---- Light Particle Reactor High-capacity Matter Pod (200) Advanced Transmission Jammer Peak State ------------ > --- POWER ------------ Quantum Reactor > --- PROPULSION ------- Armored Heavy Treads Biometal Heavy Treads > --- UTILITY ---------- Advanced Cooling System High-capacity Storage Unit Enhanced Optical Array Advanced Targeting Computer Advanced Targeting Computer Advanced Target Analyzer Advanced Core Analyzer Improved Armor Integrity Analyzer Advanced Weapon Cycler Centrium Medium Armor Plating Centrium Medium Armor Plating Centrium Medium Armor Plating > --- WEAPON ----------- KE Penetrator Railgun Railgun Hypervelocity Mass Driver Linear Accelerator Heavy Linear Accelerator Phasing Sabre > --- INVENTORY -------- Quantum Reactor Quantum Reactor Improved Heavy Siege Treads Centrium Heavy Treads Centrium Wheel High-capacity Storage Unit High-capacity Matter Pod Long-range Terrain Scanner Advanced Targeting Computer Advanced Transmission Jammer KE Penetrator Railgun Railgun [Rating: 182] Favorites ----------- Power Heavy Antimatter Reactor Engine Light Ion Engine Power Core Micro Fission Core Reactor Heavy Antimatter Reactor Propulsion Light Treads Treads Light Treads Leg Aluminum Leg Wheel Wheel Hover Unit Improved Antigrav System Utility High-capacity Storage Unit Device Weapon Cycler Storage High-capacity Storage Unit Processor Improved Targeting Computer Hackware Improved Hacking Suite Protection Centrium Medium Armor Plating Weapon Railgun Energy Gun Medium Laser Energy Cannon Enhanced Nova Cannon Ballistic Gun Railgun Ballistic Cannon Heavy Gauss Cannon Launcher Improved Grenade Launcher Impact Weapon Heavy Hammer Slashing Weapon Phasing Sabre Build | -11 -10 -10 -10 -9 -8 -8 -7 -7 -7 -6 -5 -4 -4 -4 -4 -4 -3 -2 -1 ------- Run | Scr Mat Min Exi Min Mat Sto Fac Was Fac Fac Fac Fac Ext Cet Arc Hub Res Res Acc Slots Evolved 18 | . . . . . 4 . 2 . . 2 2 2 . . . . 2 2 2 Power . | . . . . . . . . . . . . . . . . . . . . Propulsion 2 | . . . . . . . . . . . 2 . . . . . . . . Utility 10 | . . . . . 2 . 2 . . 2 . 2 . . . . 1 1 . Weapon 6 | . . . . . 2 . . . . . . . . . . . 1 1 2 Parts Attached 220 | 6 6 . 1 10 6 10 5 9 2 6 3 5 13 17 1 13 9 45 53 Power 17 | 1 . . . 1 1 2 . 1 . . . 1 . . . . . 2 8 Engine 5 | 1 . . . 1 1 2 . . . . . . . . . . . . . Core 2 | . . . . . . . . . . . . . . . . . . . 2 Reactor 10 | . . . . . . . . 1 . . . 1 . . . . . 2 6 Propulsion 35 | 2 2 . . 3 2 3 2 . . . 1 . 2 2 . . . 8 8 Treads 24 | . 2 . . . 2 2 . . . . 1 . 2 2 . . . 8 5 Leg 2 | . . . . 1 . . . . . . . . . . . . . . 1 Wheel 8 | 2 . . . 2 . 1 2 . . . . . . . . . . . 1 Hover 1 | . . . . . . . . . . . . . . . . . . . 1 Flight . | . . . . . . . . . . . . . . . . . . . . Utility 95 | 1 1 . 1 2 . 5 3 6 2 6 2 4 7 6 1 6 7 20 15 Device 42 | . . . . . . 2 2 5 1 3 2 2 2 . . 4 3 9 7 Storage 5 | 1 1 . 1 . . . . . . . . . . . . . . . 2 Processor 17 | . . . . 2 . 1 1 . . 1 . 1 2 . 1 . 1 4 3 Hackware 2 | . . . . . . . . . . . . . . . . . 1 1 . Protection 29 | . . . . . . 2 . 1 1 2 . 1 3 6 . 2 2 6 3 Artifact . | . . . . . . . . . . . . . . . . . . . . Weapon 73 | 2 3 . . 4 3 . . 2 . . . . 4 9 . 7 2 15 22 Energy Gun 11 | 1 2 . . 1 . . . . . . . . . 1 . . . . 6 Energy Cannon 2 | . . . . 1 . . . . . . . . . . . . . . 1 Ballistic Gun 37 | 1 1 . . 1 2 . . 1 . . . . 2 4 . 5 1 10 9 Ballistic Cannon 9 | . . . . . . . . 1 . . . . . 4 . . . . 4 Launcher 3 | . . . . . 1 . . . . . . . 1 . . . . . 1 Special Weapon . | . . . . . . . . . . . . . . . . . . . . Impact Weapon 2 | . . . . 1 . . . . . . . . 1 . . . . . . Slashing Weapon 9 | . . . . . . . . . . . . . . . . 2 1 5 1 Piercing Weapon . | . . . . . . . . . . . . . . . . . . . . Special Melee Weapon . | . . . . . . . . . . . . . . . . . . . . Unidentified Prototypes 12 | . . . . . . 1 . 2 . 1 . 1 . 4 . 1 . 1 1 Corrupted Parts 4 | . . . . . . . . . . . . . . . . 1 . . 3 System Corruption 27 | . . . . . . . . . . . . . . . . 10 . . 17 Parts Lost 58 | . 4 . . 1 1 . . . . . . . . 1 . . 1 7 43 Power 4 | . . . . . . . . . . . . . . . . . . . 4 Propulsion 11 | . 2 . . 1 1 . . . . . . . . . . . . . 7 Utility 18 | . . . . . . . . . . . . . . . . . 1 6 11 Weapon 25 | . 2 . . . . . . . . . . . . 1 . . . 1 21 Highest Loss Streak 25 | . 3 . . 1 1 . . . . . . . . 1 . . 1 3 25 Average Slot Usage (%) 82 | . 93 100 97 91 54 72 75 75 76 79 76 74 73 88 89 88 89 90 77 Engine 3 | . 14 14 14 14 9 9 7 1 . . . . . . . . . . . Reactor 3 | . . . . . . . . 5 7 6 5 5 5 5 5 5 4 4 3 Treads 11 | . 18 28 28 19 4 16 6 . . . 5 5 9 10 10 10 9 10 7 Wheel 3 | . 7 . . 4 6 1 7 15 15 13 11 10 1 . . . . . . Device 12 | . . . . . . 4 19 24 23 23 23 25 17 15 15 15 14 12 13 Storage 8 | . 27 28 26 14 9 9 7 7 7 6 5 5 5 5 5 5 4 4 3 Processor 12 | . . . . 6 9 13 9 7 7 13 11 11 13 15 20 21 19 20 17 Protection 7 | . . . . . . 9 7 5 7 8 5 5 14 15 10 9 12 9 4 Energy Gun 5 | . 16 28 28 20 . . . . . . . . . . . . . . . Ballistic Gun 10 | . 7 . . 5 9 9 7 7 7 6 5 5 4 10 15 18 21 23 22 Naked Turns 25 | . . . . . . . . . . . . . . . . . . . 25 Heaviest Build 156 | 12 92 91 91 54 62 72 79 88 90 93 82 92 104 129 116 104 119 135 156 Greatest Support 160 | 20 40 40 40 40 40 40 26 26 26 26 26 70 140 160 160 160 160 160 150 Greatest Overweight (x) 9 | . 9 2 2 5 6 4 4 3 3 3 3 3 3 . . . . 1 5 Average Overweight (x) 1 | . 3 2 1 2 5 1 3 2 3 3 3 2 . . . . . . . Largest Inventory Capacity 25 | 8 25 25 25 20 20 20 20 20 20 20 20 20 20 20 20 20 20 20 20 Average Capacity 20 | 6 24 25 24 20 20 20 20 20 20 20 20 20 20 20 20 20 20 20 18 Most Carried 20 | 4 5 5 16 20 20 20 20 20 20 20 20 20 20 20 20 20 20 20 20 Average Carried 17 | 2 3 4 10 18 18 19 19 19 19 19 18 19 19 19 20 19 18 19 16 Final Capacity 25 | 8 25 25 20 20 20 20 20 20 20 20 20 20 20 20 20 20 20 20 5 Final Carried 20 | 4 4 5 16 20 18 20 20 20 20 20 20 20 20 20 20 20 20 20 3 Class Distribution -------------------- 21% | Mutant 21% | Scavenger-Executioner 13% | Skirmisher 7% | Scavenger-Skirmisher 7% | Scavenger-Gunner 7% | Scavenger-Tank 6% | Scavenger-Mutant 5% | Commander-Tank 3% | Gunner 3% | Commander-Skirmisher Dominant Class ---------------- Mutant | -10/Materials Mutant | -10/Mines Mutant | -10/Exiles Mutant | -9/Mines Skirmisher | -8/Materials Skirmisher | -8/Storage Gunner | -7/Factory Scavenger-Gunner | -7/Waste Gunner | -7/Factory Skirmisher | -6/Factory Scavenger-Skirmisher | -5/Factory Scavenger-Skirmisher | -4/Factory Commander-Tank | -4/Extension Scavenger-Tank | -4/Cetus Scavenger-Gunner | -4/Archives Scavenger-Gunner | -4/Hub_04(d) Scavenger-Assassin | -3/Research Scavenger-Executioner | -2/Research Scavenger-Executioner | -1/Access Resources | -11 -10 -10 -10 -9 -8 -8 -7 -7 -7 -6 -5 -4 -4 -4 -4 -4 -3 -2 -1 ----------- Run | Scr Mat Min Exi Min Mat Sto Fac Was Fac Fac Fac Fac Ext Cet Arc Hub Res Res Acc Matter Collected 9646 | 254 105 . 20 123 54 776 320 710 . 294 373 183 588 462 136 322 160 1845 2921 Remotely 865 | . . . . . . . . . . . . . . . . . . . 865 Salvage Created 16870 | . 251 . . 200 54 1163 399 1547 . 770 847 495 1655 790 293 1059 368 3193 3786 Parts 780 | . 11 . . 14 6 65 18 30 . 24 42 22 82 40 10 46 18 146 206 Haulers Intercepted 8 | . . . . . . 3 . . . 1 2 1 . . . . . 1 . Recyclers Shooed 4 | . 1 . . . . . 1 . . . . . . . . . . 1 1 Parts Field Recycled . | . . . . . . . . . . . . . . . . . . . . Retrieved Matter . | . . . . . . . . . . . . . . . . . . . . Parts Self-Destructed . | . . . . . . . . . . . . . . . . . . . . Prevented . | . . . . . . . . . . . . . . . . . . . . Kills | -11 -10 -10 -10 -9 -8 -8 -7 -7 -7 -6 -5 -4 -4 -4 -4 -4 -3 -2 -1 ------- Run | Scr Mat Min Exi Min Mat Sto Fac Was Fac Fac Fac Fac Ext Cet Arc Hub Res Res Acc Combat Hostiles Destroyed 201 | . 8 . . 4 4 19 6 6 . 6 11 9 19 12 4 9 6 30 48 Guns 190 | . 8 . . 4 4 18 6 6 . 6 11 9 19 10 3 9 6 30 41 Cannons 8 | . . . . . . . . . . . . . . 2 1 . . . 5 AOE 2 | . . . . . . 1 . . . . . . . . . . . . 1 Classes Destroyed 18 | . 2 . . 1 . 5 2 1 . 2 . . 1 1 . . . 1 2 Worker 9 | . . . . 1 . 1 . . . 1 . . 1 . . 1 . 1 3 Builder 13 | . . . . . . . 1 . . . . . . . . 3 . 1 8 Hauler 8 | . . . . . . 3 . . . 1 2 1 . . . . . 1 . Recycler 13 | . . . . . . 1 1 . . 2 . . 1 . . 2 . 4 2 Operator 4 | . . . . . . 1 . . . . . . 1 . . . 1 . 1 Drone 1 | . . . . . . . . . . . . . . . . . . 1 . Watcher 4 | . . . . . . 1 . . . . . . . 1 . 1 . 1 . Swarmer 40 | . 3 . . . 4 4 . . . 1 . 5 1 5 . . 4 . 13 Cutter 1 | . . . . . . . . . . . . . . . . . . . 1 Grunt 63 | . 5 . . 4 . 10 3 . . 1 4 1 9 . . 4 . 8 14 Sentry 29 | . . . . . . 5 1 . . 1 1 2 4 . 4 2 2 5 2 Specialist 2 | . . . . . . . . . . . . . . . . . . . 2 Hunter 22 | . . . . . . . 2 . . . 4 . 2 2 . 3 . 5 4 Programmer 27 | . . . . . . . . . . 2 2 1 . . . . . 11 11 Heavy 2 | . . . . . . . . . . . . . 1 . . . . 1 . Behemoth 4 | . . . . . . . . . . 1 . . 2 . . . . . 1 Compactor 6 | . . . . . . . . 6 . . . . . . . . . . . Cetus Guard 5 | . . . . . . . . . . . . . . 5 . . . . . Wasp 2 | . . . . . . . . . . 2 . . . . . . . . . Butcher 2 | . . . . . . . . . . . . . . 2 . . . . . Guerrilla 1 | . . . . . . . . . . . . . . 1 . . . . . Best Kill Streak 24 | . 3 . . 3 4 8 4 6 . 6 2 5 4 5 3 6 6 5 24 Combat Bots Only 20 | . 3 . . 3 4 7 3 6 . 2 2 5 4 5 3 4 5 4 20 Max Kills in Single Turn 3 | . 1 . . 1 1 2 2 1 . 2 1 2 1 2 1 2 2 3 3 Gunslinging 1 | . . . . . . . . . . . . . . 1 . . 1 1 1 Exploded 1 | . . . . . . 1 . . . . . . . . . . . . 1 Melee . | . . . . . . . . . . . . . . . . . . . . Uniques/NPCs Destroyed . | . . . . . . . . . . . . . . . . . . . . Combat | -11 -10 -10 -10 -9 -8 -8 -7 -7 -7 -6 -5 -4 -4 -4 -4 -4 -3 -2 -1 -------- Run | Scr Mat Min Exi Min Mat Sto Fac Was Fac Fac Fac Fac Ext Cet Arc Hub Res Res Acc Damage Taken 18814 | . 590 . . 87 65 221 237 . . 131 385 120 671 1391 153 705 642 2893 10523 Core 2145 | . 87 . . . 8 12 16 . . 23 . 18 69 38 28 47 . 178 1621 Absorbed by Shields 57 | . . . . . . . . . . . 12 . 45 . . . . . . Reduced by Siege Mode 218 | . . . . . . . . . . . . . 4 68 . 16 . 27 103 Core Remaining (%) 91 | 100 . . . 65 . 96 . . 97 97 100 . . . . 82 100 87 . Volleys Fired 548 | . 41 . . 7 8 38 18 32 . 22 49 19 67 33 14 24 17 52 107 Largest 7 | . 2 . . 2 1 1 1 1 . 1 1 1 1 4 4 4 5 6 7 Hottest 318 | . 90 . . 68 60 60 60 60 . 60 60 60 60 236 166 140 175 215 318 Shots Fired 1488 | . 72 . . 13 8 38 18 32 . 22 49 19 67 100 56 96 79 288 531 Gun 1388 | . 72 . . 13 5 38 18 32 . 22 49 19 64 70 42 96 79 288 481 Cannon 88 | . . . . . . . . . . . . . . 30 14 . . . 44 Launcher 12 | . . . . . 3 . . . . . . . 3 . . . . . 6 Special . | . . . . . . . . . . . . . . . . . . . . Kinetic 1389 | . 27 . . 6 5 38 18 32 . 22 49 19 64 100 56 96 79 288 490 Thermal 69 | . 45 . . 1 . . . . . . . . . . . . . . 23 Explosive 12 | . . . . . 3 . . . . . . . 3 . . . . . 6 Electromagnetic 18 | . . . . 6 . . . . . . . . . . . . . . 12 Robot Hit Streak 29 | . 8 . . 6 4 14 10 16 . 9 10 9 26 20 18 17 14 27 29 Robot Miss Streak 6 | . 5 . . 1 4 4 3 3 . 4 5 3 6 4 2 3 3 5 4 Penetration Max 2 | . . . . . . . . . . . . . . 1 1 1 . 2 2 Secondary Targets 28 | . 1 . . 1 . . . . . . . . . 4 . . 3 9 10 Max Gunslinging Chain 2 | . 1 . . 1 . . . . . . . . . 2 . . 1 1 2 Shots Hit Robots 1039 | . 44 . . 9 4 33 17 32 . 21 35 19 62 75 39 69 54 176 350 Core Hits 581 | . 17 . . 6 4 36 14 23 . 20 32 19 65 46 14 37 17 89 142 Critical Kills 52 | . . . . . . . . . . . . . . 4 1 4 4 17 22 Critical Parts Destroyed 48 | . . . . . . . . . . . . . . 5 1 4 . 14 24 Critical Strikes 128 | . 4 . . . . . . . . . . . . 15 9 8 4 32 56 Burn 6 | . 4 . . . . . . . . . . . . . . . . . 2 Destroy 113 | . . . . . . . . . . . . . . 11 5 8 4 32 53 Blast 9 | . . . . . . . . . . . . . . 4 4 . . . 1 Melee Attacks 96 | . . . . . . . . . . . . . 2 . . 8 2 41 43 Impact 2 | . . . . . . . . . . . . . 2 . . . . . . Slashing 94 | . . . . . . . . . . . . . . . . 8 2 41 43 Piercing . | . . . . . . . . . . . . . . . . . . . . Sneak Attacks . | . . . . . . . . . . . . . . . . . . . . Combat Hostiles . | . . . . . . . . . . . . . . . . . . . . Follow-up Attacks . | . . . . . . . . . . . . . . . . . . . . Damage Inflicted 37027 | . 601 . . 166 199 2031 1130 2719 . 1318 1676 1130 4000 2541 1197 1716 1102 4566 10935 Guns 34068 | . 601 . . 137 199 1897 1130 2719 . 1318 1676 1130 3984 1828 882 1676 1102 4566 9223 Cannons 2478 | . . . . . . . . . . . . . . 713 315 . . . 1450 Explosions 379 | . . . . 29 . 134 . . . . . . . . . . . . 216 Melee 40 | . . . . . . . . . . . . . . . . 40 . . . Ramming 62 | . . . . . . . . . . . . . 16 . . . . . 46 Kinetic 35373 | . 223 . . 31 199 1897 1130 2719 . 1318 1676 1130 3984 2541 1197 1676 1102 4566 9984 Thermal 820 | . 378 . . 41 . . . . . . . . . . . . . . 401 Explosive 350 | . . . . . . 134 . . . . . . . . . . . . 216 Electromagnetic 382 | . . . . 94 . . . . . . . . . . . . . . 288 Impact . | . . . . . . . . . . . . . . . . . . . . Slashing 40 | . . . . . . . . . . . . . . . . 40 . . . Piercing . | . . . . . . . . . . . . . . . . . . . . Highest Corruption 25 | . . . . . . . . . . . . . . . . 15 . 9 25 Average Corruption 3 | . . . . . . . . . . . . . . . . 5 . 2 3 Corruption Purged . | . . . . . . . . . . . . . . . . . . . . Effects 40 | . . . . . . . . . . . . . . . . 3 . 14 23 Message Errors 15 | . . . . . . . . . . . . . . . . 1 . 6 8 Matter Fused 5 | . . . . . . . . . . . . . . . . . . 1 4 Heat Flow Errors 1 | . . . . . . . . . . . . . . . . . . . 1 Energy Discharges 8 | . . . . . . . . . . . . . . . . . . 3 5 Data Loss (minor) 7 | . . . . . . . . . . . . . . . . 2 . 2 3 Weapon Failures 4 | . . . . . . . . . . . . . . . . . . 2 2 Overload Shots . | . . . . . . . . . . . . . . . . . . . . Overflow Damage 89 | . . . . . . 34 . . . . . . . . 9 . . . 46 Projectiles 55 | . . . . . . . . . . . . . . . 9 . . . 46 Explosions 34 | . . . . . . 34 . . . . . . . . . . . . . Melee . | . . . . . . . . . . . . . . . . . . . . Knockbacks 16 | . . . . . . . . . . . . . . 9 1 . . . 6 Impact 1 | . . . . . . . . . . . . . . . . . . . 1 Kinetic 14 | . . . . . . . . . . . . . . 8 1 . . . 5 Secondary 1 | . . . . . . . . . . . . . . 1 . . . . . Self-Inflicted Damage 150 | . . . . 34 . . . . . . . . . . . . . . 116 Shots 4 | . . . . 1 . . . . . . . . . . . . . . 3 Rammed 6 | . . . . . . . . . . . . . 2 . . . . . 4 Targets Rammed 6 | . . . . . . . . . . . . . 2 . . . . . 4 Kicked . | . . . . . . . . . . . . . . . . . . . . Crushed . | . . . . . . . . . . . . . . . . . . . . Highest Temperature 389 | . 312 . . 60 150 184 236 170 . 148 384 145 274 271 91 58 307 308 389 Average Temperature 85 | . 94 . . 23 68 47 81 75 . 53 106 61 84 72 42 25 103 78 117 Received Heat Transfer 1444 | . 300 . . 30 . 99 69 . . 18 72 9 100 72 9 81 45 135 405 Effects 11 | . . . . . . . . . . . 1 . 4 3 . . . 1 2 Energy Bleed 3 | . . . . . . . . . . . . . 1 . . . . . 2 Interference 7 | . . . . . . . . . . . . . 3 3 . . . 1 . Damage (minor) 1 | . . . . . . . . . . . 1 . . . . . . . . Siege Activations 12 | . . . . . . . . . . . . . 3 1 . 2 . 4 2 Total Turns 237 | . . . . . . . . . . . . . 13 27 . 60 . 90 47 Longest Duration 52 | . . . . . . . . . . . . . 6 27 . 39 . 52 31 Robots Corrupted 1 | . . . . . . . . . . . . . . . . . . . 1 Combat Hostiles 1 | . . . . . . . . . . . . . . . . . . . 1 Parts Fried 4 | . . . . . . . . . . . . . 1 . . . . . 3 Impact Corruptions . | . . . . . . . . . . . . . . . . . . . . Robots Melted . | . . . . . . . . . . . . . . . . . . . . Combat Hostiles . | . . . . . . . . . . . . . . . . . . . . Parts Melted 5 | . 2 . . . . . . . . 1 . . 2 . . . . . . Heat Transferred 1891 | . 1335 . . 37 . . . . . . . . . . . . . . 519 Parts Sabotaged . | . . . . . . . . . . . . . . . . . . . . Parts Stolen . | . . . . . . . . . . . . . . . . . . . . Parts Stripped . | . . . . . . . . . . . . . . . . . . . . Power Chain Reactions 1 | . . . . 1 . . . . . . . . . . . . . . . Missiles Intercepted . | . . . . . . . . . . . . . . . . . . . . Alert | -11 -10 -10 -10 -9 -8 -8 -7 -7 -7 -6 -5 -4 -4 -4 -4 -4 -3 -2 -1 ------- Run | Scr Mat Min Exi Min Mat Sto Fac Was Fac Fac Fac Fac Ext Cet Arc Hub Res Res Acc Peak Influence 1133 | . 180 70 . 100 112 498 361 128 19 305 319 306 699 561 337 527 377 679 1133 Initial 401 | . . 70 . . . 46 158 126 . 9 56 105 79 259 166 117 198 139 401 Average 261 | . 91 70 . 4 36 232 232 103 7 106 144 154 315 386 295 314 255 358 546 Maximum Alert Level 4 | . . . . . . 2 1 . . 1 1 1 2 2 1 2 1 2 4 Low Security (%) 46 | 100 100 100 . 100 100 37 47 100 100 90 77 78 35 . 10 25 12 20 . Level 1 29 | . . . . . . 47 52 . . 9 22 21 21 53 89 44 87 46 41 Level 2 19 | . . . . . . 14 . . . . . . 42 46 . 29 . 33 28 Level 3 4 | . . . . . . . . . . . . . . . . . . . 28 Level 4 . | . . . . . . . . . . . . . . . . . . . . Level 5 . | . . . . . . . . . . . . . . . . . . . . High Security . | . . . . . . . . . . . . . . . . . . . . Max Security . | . . . . . . . . . . . . . . . . . . . . Squads Dispatched 40 | . 2 . . . . 2 4 . . 2 3 1 4 . . 2 . 6 14 Investigation 5 | . . . . . . . 1 . . . . . 3 . . . . . 1 Extermination 10 | . . . . . . . . . . 1 1 1 . . . . . 3 4 Reinforcement 20 | . 2 . . . . 2 3 . . 1 2 . 1 . . 2 . 3 4 Assault 2 | . . . . . . . . . . . . . . . . . . . 2 Garrison 3 | . . . . . . . . . . . . . . . . . . . 3 Intercept . | . . . . . . . . . . . . . . . . . . . . Construction Impeded 2 | . . . . . . . 1 . . . . . 1 . . . . . . Haulers Reinforced 5 | . . . . . . . . . . 1 2 . . . . 1 . . 1 Active Scanning Responses . | . . . . . . . . . . . . . . . . . . . . Cargo Convoy Interrupts . | . . . . . . . . . . . . . . . . . . . . Stealth | -11 -10 -10 -10 -9 -8 -8 -7 -7 -7 -6 -5 -4 -4 -4 -4 -4 -3 -2 -1 --------- Run | Scr Mat Min Exi Min Mat Sto Fac Was Fac Fac Fac Fac Ext Cet Arc Hub Res Res Acc Distress Signals 13 | . . . . . . 4 . . . 1 . . 1 2 . 3 . 2 . Communications Jammed 97 | . . . . . . . . . . . . . . . . 28 . . 69 Distress Signals 89 | . . . . . . . . . . . . . . . . 28 . . 61 Times Spotted 308 | . 10 . . 9 4 29 6 6 1 12 12 9 36 20 12 23 6 39 74 Peak Tracking Total 7 | . 4 . . 3 4 6 3 4 1 4 3 5 5 5 1 7 5 5 7 Tactical Retreats 10 | . . . . . . . . . . 1 . . 1 . . 1 . 3 4 Traps | -11 -10 -10 -10 -9 -8 -8 -7 -7 -7 -6 -5 -4 -4 -4 -4 -4 -3 -2 -1 ------- Run | Scr Mat Min Exi Min Mat Sto Fac Was Fac Fac Fac Fac Ext Cet Arc Hub Res Res Acc Traps Triggered 5 | . . . . . . . 1 . . 1 1 . . . . 2 . . . Indirectly . | . . . . . . . . . . . . . . . . . . . . Trap Hack Attempts . | . . . . . . . . . . . . . . . . . . . . Triggered . | . . . . . . . . . . . . . . . . . . . . Disarmed . | . . . . . . . . . . . . . . . . . . . . Reprogrammed . | . . . . . . . . . . . . . . . . . . . . Reused . | . . . . . . . . . . . . . . . . . . . . Traps Extracted . | . . . . . . . . . . . . . . . . . . . . Installed . | . . . . . . . . . . . . . . . . . . . . Triggered . | . . . . . . . . . . . . . . . . . . . . Machines | -11 -10 -10 -10 -9 -8 -8 -7 -7 -7 -6 -5 -4 -4 -4 -4 -4 -3 -2 -1 ---------- Run | Scr Mat Min Exi Min Mat Sto Fac Was Fac Fac Fac Fac Ext Cet Arc Hub Res Res Acc Machines Disabled 28 | . . . . 1 1 5 1 . . 6 1 . 3 1 4 2 . 1 2 Max in Single Turn 2 | . . . . 1 1 1 1 . . 2 1 . 1 . 1 1 . 1 1 Garrison Access 3 | . . . . . . 1 . . . . . 1 . . . . . 1 . Network Hub 1 | . . . . . . . . . . . . . . . . 1 . . . Machines Sabotaged . | . . . . . . . . . . . . . . . . . . . . Garrisons Compromised . | . . . . . . . . . . . . . . . . . . . . Overloaded Fab Kills . | . . . . . . . . . . . . . . . . . . . . Fab Network Shutdowns . | . . . . . . . . . . . . . . . . . . . . Hacking | -11 -10 -10 -10 -9 -8 -8 -7 -7 -7 -6 -5 -4 -4 -4 -4 -4 -3 -2 -1 --------- Run | Scr Mat Min Exi Min Mat Sto Fac Was Fac Fac Fac Fac Ext Cet Arc Hub Res Res Acc Machines Accessed 42 | . . . 2 . 1 2 1 . 1 . . 3 15 1 1 1 3 6 5 Terminals 32 | . . . . . 1 1 . . 1 . . 2 15 1 . 1 2 4 4 Fabricators 1 | . . . . . . . 1 . . . . . . . . . . . . Repair Stations 1 | . . . . . . . . . . . . . . . . . 1 . . Recycling Units . | . . . . . . . . . . . . . . . . . . . . Scanalyzers . | . . . . . . . . . . . . . . . . . . . . Garrison Access 5 | . . . . . . 1 . . . . . 1 . . . . . 2 1 Total Hacks 95 | . . . 8 . 2 4 2 . 1 . . 4 34 3 8 1 8 11 9 Successful 48 | . . . 8 . 2 2 . . . . . 2 14 1 8 . 4 5 2 Failed 47 | . . . . . . 2 2 . 1 . . 2 20 2 . 1 4 6 7 Catastrophic 12 | . . . . . . . 1 . . . . 1 5 1 . 1 . . 3 Database Lockouts . | . . . . . . . . . . . . . . . . . . . . Manual 10 | . . . 1 . 1 . . . . . . 1 . 1 . 1 1 4 . Terminals 66 | . . . . . 2 1 . . 1 . . 2 34 3 . 1 7 7 8 Fabricators 2 | . . . . . . . 2 . . . . . . . . . . . . Repair Stations 1 | . . . . . . . . . . . . . . . . . 1 . . Recycling Units . | . . . . . . . . . . . . . . . . . . . . Scanalyzers . | . . . . . . . . . . . . . . . . . . . . Garrison Access 10 | . . . . . . 3 . . . . . 2 . . . . . 4 1 Terminal Hacks 39 | . . . 8 . 1 1 . . . . . . 14 1 8 . 2 2 2 Record 15 | . . . 7 . . . . . . . . . . . 8 . . . . Part Schematic 1 | . . . . . . . . . . . . . 1 . . . . . . Open Door 13 | . . . . . . 1 . . . . . . 11 1 . . . . . Level Access Points 2 | . . . . . . . . . . . . . . . . . . 1 1 Branch Access Points 1 | . . . . . 1 . . . . . . . . . . . . . . Unreport Threat 4 | . . . . . . . . . . . . . 2 . . . 1 . 1 Locate Traps 1 | . . . . . . . . . . . . . . . . . . 1 . Zone Layout 1 | . . . . . . . . . . . . . . . . . 1 . . EX-Prototype ID Bank 1 | . . . 1 . . . . . . . . . . . . . . . . Fabricator Hacks . | . . . . . . . . . . . . . . . . . . . . Repair Station Hacks 1 | . . . . . . . . . . . . . . . . . 1 . . Scan Component 1 | . . . . . . . . . . . . . . . . . 1 . . Recycling Unit Hacks . | . . . . . . . . . . . . . . . . . . . . Scanalyzer . | . . . . . . . . . . . . . . . . . . . . Garrison Access Hacks 3 | . . . . . . 1 . . . . . 1 . . . . . 1 . Seal Access 3 | . . . . . . 1 . . . . . 1 . . . . . 1 . Unauthorized Hacks 5 | . . . . . 1 . . . . . . 1 . . . . 1 2 . Terminals 5 | . . . . . 1 . . . . . . 1 . . . . 1 2 . Botnet 5 | . . . . . 1 . . . . . . 1 . . . . 1 2 . Fabricators . | . . . . . . . . . . . . . . . . . . . . Repair Stations . | . . . . . . . . . . . . . . . . . . . . Recycling Units . | . . . . . . . . . . . . . . . . . . . . Scanalyzers . | . . . . . . . . . . . . . . . . . . . . Garrison Access . | . . . . . . . . . . . . . . . . . . . . Data Cores Recovered 3 | . . . . . . . . . . . . . 1 . . . 1 . 1 Used . | . . . . . . . . . . . . . . . . . . . . Hacking Detections 23 | . . . . . . . 1 . . . . 1 10 1 . . 2 4 4 Full Trace Events 5 | . . . . . . . 1 . . . . . 3 . . . . . 1 Feedback Events . | . . . . . . . . . . . . . . . . . . . . Feedback Blocked . | . . . . . . . . . . . . . . . . . . . . Robot Schematics Acquired . | . . . . . . . . . . . . . . . . . . . . Robots Built . | . . . . . . . . . . . . . . . . . . . . Matter . | . . . . . . . . . . . . . . . . . . . . Time . | . . . . . . . . . . . . . . . . . . . . Total Robot Build Rating . | . . . . . . . . . . . . . . . . . . . . Part Schematics Acquired 1 | . . . . . . . . . . . . . 1 . . . . . . Parts Built . | . . . . . . . . . . . . . . . . . . . . Matter . | . . . . . . . . . . . . . . . . . . . . Time . | . . . . . . . . . . . . . . . . . . . . Total Part Build Rating . | . . . . . . . . . . . . . . . . . . . . Parts Repaired . | . . . . . . . . . . . . . . . . . . . . Time . | . . . . . . . . . . . . . . . . . . . . Parts Recycled . | . . . . . . . . . . . . . . . . . . . . Recycled Matter . | . . . . . . . . . . . . . . . . . . . . Retrieved Matter . | . . . . . . . . . . . . . . . . . . . . Retrieved Components . | . . . . . . . . . . . . . . . . . . . . Parts Scanalyzed . | . . . . . . . . . . . . . . . . . . . . Part Schematics Acquired . | . . . . . . . . . . . . . . . . . . . . Parts Damaged . | . . . . . . . . . . . . . . . . . . . . Bothacking | -11 -10 -10 -10 -9 -8 -8 -7 -7 -7 -6 -5 -4 -4 -4 -4 -4 -3 -2 -1 ------------ Run | Scr Mat Min Exi Min Mat Sto Fac Was Fac Fac Fac Fac Ext Cet Arc Hub Res Res Acc Used RIF Installer . | . . . . . . . . . . . . . . . . . . . . Robots Hacked . | . . . . . . . . . . . . . . . . . . . . Non-combat . | . . . . . . . . . . . . . . . . . . . . Combat . | . . . . . . . . . . . . . . . . . . . . Robot Hacks Applied . | . . . . . . . . . . . . . . . . . . . . Relay Couplers Released . | . . . . . . . . . . . . . . . . . . . . Robots Rewired 14 | . . . . . . . . . . . . . 14 . . . . . . Allies Hacked 1 | . . . . . . . . . . 1 . . . . . . . . . Hacks Repelled . | . . . . . . . . . . . . . . . . . . . . Allies | -11 -10 -10 -10 -9 -8 -8 -7 -7 -7 -6 -5 -4 -4 -4 -4 -4 -3 -2 -1 -------- Run | Scr Mat Min Exi Min Mat Sto Fac Was Fac Fac Fac Fac Ext Cet Arc Hub Res Res Acc Total Allies 49 | . . . . . . . . 20 . . . . 29 . . . . . . Largest Group 20 | . . . . . . . . 20 20 19 . . 16 13 . . . . . Highest-Rated Group 758 | . . . . . . . . 508 508 477 . . 758 522 . . . . . Highest-Rated Ally 159 | . . . . . . . . 35 35 35 . . 159 49 . . . . . Total Orders 12 | . . . . . . . 2 . 2 2 . . . . . . . 6 . EXPLORE 11 | . . . . . . . 2 . 1 2 . . . . . . . 6 . RETURN 1 | . . . . . . . . . 1 . . . . . . . . . . Ally Attacks 276 | . . . . . . . . 16 4 77 . . 140 39 . . . . . Total Damage 6385 | . . . . . . . . 215 64 1036 . . 4006 1064 . . . . . Kills 34 | . . . . . . . . . 1 6 . . 19 8 . . . . . Allies Corrupted 3 | . . . . . . . . . . 2 . . . . . . . 1 . Allies Melted 1 | . . . . . . . . . . 1 . . . . . . . . . Intel | -11 -10 -10 -10 -9 -8 -8 -7 -7 -7 -6 -5 -4 -4 -4 -4 -4 -3 -2 -1 ------- Run | Scr Mat Min Exi Min Mat Sto Fac Was Fac Fac Fac Fac Ext Cet Arc Hub Res Res Acc Robot Analysis Total . | . . . . . . . . . . . . . . . . . . . . Derelict Logs Recovered 2 | . . 1 . 1 . . . . . . . . . . . . . . . Drone Launches 16 | . . . . . . . 2 . 2 2 . . . . . . . 10 . Drone Recoveries 10 | . . . . . . . 2 . 2 . . . . . . . . 6 . Exploration | -11 -10 -10 -10 -9 -8 -8 -7 -7 -7 -6 -5 -4 -4 -4 -4 -4 -3 -2 -1 ------------- Run | Scr Mat Min Exi Min Mat Sto Fac Was Fac Fac Fac Fac Ext Cet Arc Hub Res Res Acc Turns Passed 14761 | 44 300 343 980 1612 122 898 366 494 241 884 535 442 2044 772 173 490 283 1643 2095 Spaces Moved 6939 | 40 73 96 285 693 54 342 207 319 109 609 283 307 1037 389 82 199 131 733 951 Core 50 | 1 . . . . . . . . . . . . . . . . . . 49 Treads 4360 | . 35 96 285 395 9 231 . . . . . 1 898 389 82 199 131 733 876 Legs . | . . . . . . . . . . . . . . . . . . . . Wheels 2529 | 39 38 . . 298 45 111 207 319 109 609 283 306 139 . . . . . 26 Hover . | . . . . . . . . . . . . . . . . . . . . Flight . | . . . . . . . . . . . . . . . . . . . . Fastest Speed 50 | 50 80 360 260 110 170 160 135 120 135 135 135 135 135 160 160 160 160 145 50 Average Speed 171 | 79 245 360 341 214 185 227 156 134 135 135 135 135 156 160 160 160 160 150 157 Slowest Speed 360 | 80 360 360 360 260 260 260 160 135 135 135 135 260 160 160 160 160 160 252 300 Overloaded Moves . | . . . . . . . . . . . . . . . . . . . . Propulsion Burnouts . | . . . . . . . . . . . . . . . . . . . . Robots Hopped . | . . . . . . . . . . . . . . . . . . . . Cave-ins Triggered 1 | . . . . . . . . . . . . . . . . . . 1 . Exploration Rate (%) 39 | 3 14 21 63 91 8 54 13 96 9 32 10 12 95 91 88 33 4 32 28 Regions Visited 19 Branch Regions 8 Pre-discovered Areas 3 | . . . 1 1 . 1 . . . . . . . . . . . . . Known Exits Taken 4 | . . . . . 1 1 . . . . . . . . . . 1 1 . Unknown Exits Taken 13 | 1 1 1 1 1 . . . . 1 1 1 1 1 1 1 1 . . . Scrap Searched 2 | . . . . 2 . . . . . . . . . . . . . . . Spaces Dug 111 | . . . . . . . . . . 1 10 . 15 . . 7 2 42 34 Terrain Destroyed 381 | . . . . 2 31 21 2 2 . 3 20 . 36 29 10 44 12 79 90 Melee 81 | . . . . . . . . . . . . . . . . 7 2 39 33 Projectile 199 | . . . . . 7 21 2 2 . 3 20 . 13 29 10 37 8 33 14 AOE 90 | . . . . 2 24 . . . . . . . 23 . . . . . 41 Terrain Rammed 2 | . . . . . . . . . . . . . . . . . . . 2 Walls Destroyed . | . . . . . . . . . . . . . . . . . . . . Machines Disabled . | . . . . . . . . . . . . . . . . . . . . Actions | -11 -10 -10 -10 -9 -8 -8 -7 -7 -7 -6 -5 -4 -4 -4 -4 -4 -3 -2 -1 --------- Run | Scr Mat Min Exi Min Mat Sto Fac Was Fac Fac Fac Fac Ext Cet Arc Hub Res Res Acc Total 9125 | 49 126 96 293 809 75 467 254 398 203 674 439 338 1467 491 96 310 165 1096 1279 Wait 843 | . 3 . . 76 . 51 17 3 90 22 95 1 134 33 . 55 1 179 83 Move 6920 | 39 72 95 284 692 53 341 207 318 108 608 282 306 1036 388 81 198 130 731 951 Hop . | . . . . . . . . . . . . . . . . . . . . Pick Up 128 | 4 4 1 7 10 3 12 2 13 1 3 2 3 14 7 . 4 3 16 19 Fast Attach 79 | 6 1 . . 6 2 5 3 6 . 4 . 2 4 6 . 2 2 12 18 Attach 65 | . 4 . . . 3 2 1 1 . 1 1 1 4 4 . . 4 11 28 Detach 7 | . . . . 3 1 . . . . . . . . . . . 1 2 . Swap 76 | . 1 . 1 4 1 3 1 2 2 1 2 2 5 7 1 11 3 22 7 Drop 157 | . . . 1 11 4 15 4 23 2 5 . 4 21 13 . 8 2 27 17 Fire 548 | . 41 . . 7 8 38 18 32 . 22 49 19 67 33 14 24 17 52 107 Melee 96 | . . . . . . . . . . . . . 2 . . 8 2 41 43 Ram 2 | . . . . . . . . . . . . . . . . . . . 2 Kick . | . . . . . . . . . . . . . . . . . . . . Crush 6 | . . . . . . . . . . . . . 2 . . . . . 4 Escape Stasis 17 | . . . . . . . . . . 8 8 . . . . . . 1 . Rewire 179 | . . . . . . . 1 . . . . . 178 . . . . . . Trap . | . . . . . . . . . . . . . . . . . . . . Miscellaneous 2 | . . . . . . . . . . . . . . . . . . 2 . Route ------- -11/Scrapyard -10/Materials -10/Mines (discovered 2 exits: [*Mat] / *Exi) -10/Exiles -9/Mines (discovered 2 exits: *Mat x2) -8/Materials (discovered 2 exits: Fac / *Sto) -8/Storage -7/Factory -7/Waste -7/Factory -6/Factory -5/Factory -4/Factory (discovered 2 exits: *Res / *Ext) -4/Extension (discovered 2 exits: *Res / *Cet) -4/Cetus (discovered 3 exits: *Res x2 / *Arc) -4/Archives (discovered 3 exits: *Res / *Hub x2) -4/Hub_04(d) -3/Research -2/Research (discovered 4 exits: *Acc x3 / *Tes) -1/Access (discovered 1 exit: Sur) History --------- Turn | Location | Event 13 | -11/Scrapyard | Discovered new exit (range 15) 45 | -11/Scrapyard | Entered Materials 74 | -10/Materials | Discovered new exit (range 16) 186 | -10/Materials | Lost 3 parts (1n2w) 312 | -10/Materials | Build established: Mutant 345 | -10/Materials | Entered Mines 523 | -10/Mines | Discovered new exit (range 5) 634 | -10/Mines | Learned 4 Materials zone layouts 674 | -10/Mines | Deemed a non-threat by the Exiles lab entrance 674 | -10/Mines | Discovered new exit (range 5) 688 | -10/Mines | Entered Exiles 781 | -10/Exiles | Met 8R-AWN 839 | -10/Exiles | Met EX-HEX 936 | -10/Exiles | Met EX-BIN 987 | -10/Exiles | Aligned with FarCom system 990 | -10/Exiles | Given EX-Vault access code 1141 | -10/Exiles | Opened EX-Vault 1163 | -10/Exiles | Found XL Autogun Array 1236 | -10/Exiles | Warned to stay clear of 0b10 Research branches 1337 | -10/Exiles | Met EX-DEC 1373 | -10/Exiles | Learned location of Zion (-6) 1644 | -10/Exiles | Discovered new exit (range 10) 1668 | -10/Exiles | Left Exiles lab with XL Autogun Array 1668 | -10/Exiles | Entered Mines 1726 | -9/Mines | Learned location of Storage (-8) 1825 | -9/Mines | YI-UF0 nonchalantly dropped a Grenade Launcher on the ground 2206 | -9/Mines | Discovered new exit (range 4) 2566 | -9/Mines | Joined a pair of Derelicts in attacking an 0b10 outpost 3147 | -9/Mines | Found a hidden stash of uninstalled traps 3189 | -9/Mines | Build established: Scavenger-Mutant 3239 | -9/Mines | Discovered new exit (range 9) 3280 | -9/Mines | Entered Materials 3280 | -8/Materials | Evolved 4 slots: Utility x2, Weapon x2 3281 | -8/Materials | Identified exit to Factory 3281 | -8/Materials | Identified exit to Storage 3402 | -8/Materials | Entered Storage 3601 | -8/Storage | Build established: Skirmisher 4083 | -8/Storage | Learned location of Armory (-3) 4090 | -8/Storage | Destroyed 7 combat bots 4255 | -8/Storage | Discovered exit to Factory (range 16) 4300 | -8/Storage | Entered Factory 4300 | -7/Factory | Evolved 2 slots: Utility x2 4646 | -7/Factory | Build established: Gunner 4666 | -7/Factory | Sucked down chute 4666 | -7/Factory | Entered Waste 4667 | -7/Waste | Met a frightened Derelict 4692 | -7/Waste | Spotted C-40 Crusher 4696 | -7/Waste | Destroyed C-40 Crusher 4703 | -7/Waste | Destroyed C-40 Crusher 4706 | -7/Waste | Spotted C-40 Crusher 4709 | -7/Waste | Spotted C-40 Crusher 4713 | -7/Waste | Destroyed C-40 Crusher 4719 | -7/Waste | Destroyed C-40 Crusher 4719 | -7/Waste | Spotted C-40 Crusher 4721 | -7/Waste | Spotted C-40 Crusher 4729 | -7/Waste | Destroyed C-40 Crusher 4732 | -7/Waste | Destroyed C-40 Crusher 4811 | -7/Waste | Warlord forces began an assault 5035 | -7/Waste | Discovered new exit (range 12) 5043 | -7/Waste | Build established: Scavenger-Gunner 5160 | -7/Waste | Entered Factory 5160 | -7/Factory | Accompanied by 20 allies 5278 | -7/Factory | Discovered new exit (range 37) 5401 | -7/Factory | Entered another Factory area 5401 | -6/Factory | Accompanied by 19 allies 5401 | -6/Factory | Evolved 2 slots: Utility x2 5552 | -6/Factory | Spotted B-75 Beast 5559 | -6/Factory | Destroyed B-75 Beast 5701 | -6/Factory | Build established: Skirmisher 6224 | -6/Factory | P-60 Hacker assimilated allied F3-Q6I(g) 6265 | -6/Factory | Discovered new exit (range 14) 6285 | -6/Factory | Entered another Factory area 6285 | -5/Factory | Evolved 2 slots: Propulsion x2 6585 | -5/Factory | Build established: Scavenger-Skirmisher 6796 | -5/Factory | Discovered new exit (range 7) 6820 | -5/Factory | Entered another Factory area 6820 | -4/Factory | Evolved 2 slots: Utility x2 7179 | -4/Factory | Discovered new exit (range 22) 7219 | -4/Factory | Discovered new exit (range 22) 7262 | -4/Factory | Entered Extension 7401 | -4/Extension | Rescued a captive Derelict 7451 | -4/Extension | Rescued a captive Derelict 7462 | -4/Extension | Rescued a captive Derelict 7506 | -4/Extension | Rescued A7 7953 | -4/Extension | Build established: Commander-Skirmisher 8065 | -4/Extension | Spotted B-86 Titan 8067 | -4/Extension | Spotted B-86 Titan 8078 | -4/Extension | Destroyed B-86 Titan 8085 | -4/Extension | Destroyed B-86 Titan 8218 | -4/Extension | Rescued a captive Derelict 8221 | -4/Extension | Rescued a captive Derelict 8377 | -4/Extension | Rescued a captive Derelict 8378 | -4/Extension | Rescued a captive Derelict 8452 | -4/Extension | Rescued a captive Derelict 8453 | -4/Extension | Rescued a captive Derelict 8522 | -4/Extension | Build established: Scavenger-Tank 8622 | -4/Extension | Rescued a captive Derelict 8737 | -4/Extension | Rescued a captive Derelict 8768 | -4/Extension | Rescued a captive Derelict 8777 | -4/Extension | Rescued a captive Derelict 8778 | -4/Extension | Rescued a captive Derelict 8997 | -4/Extension | Build established: Commander-Tank 9207 | -4/Extension | Discovered new exit (range 21) 9212 | -4/Extension | Discovered new exit (range 21) 9306 | -4/Extension | Entered Cetus 9306 | -4/Cetus | Accompanied by 13 allies 9321 | -4/Cetus | Spotted Cetus Guard 9322 | -4/Cetus | Spotted Cetus Guard 9324 | -4/Cetus | Spotted Cetus Guard 9328 | -4/Cetus | Spotted Cetus Guard 9330 | -4/Cetus | Allies destroyed Cetus Guard 9348 | -4/Cetus | Destroyed Cetus Guard 9352 | -4/Cetus | Allies destroyed Cetus Guard 9355 | -4/Cetus | Allies destroyed Cetus Guard 9477 | -4/Cetus | Discovered new exit (range 22) 9590 | -4/Cetus | Spotted Cetus Guard 9591 | -4/Cetus | Spotted Cetus Guard 9593 | -4/Cetus | Spotted Cetus Guard 9598 | -4/Cetus | Destroyed Cetus Guard 9599 | -4/Cetus | Spotted Cetus Guard 9607 | -4/Cetus | Destroyed Cetus Guard 9615 | -4/Cetus | Destroyed Cetus Guard 9621 | -4/Cetus | Destroyed Cetus Guard 9634 | -4/Cetus | Discovered new exit (range 21) 9652 | -4/Cetus | Met Revision 17 9830 | -4/Cetus | Discovered new exit (range 22) 10078 | -4/Cetus | Entered Archives 10170 | -4/Archives | Unable to access archive contents 10178 | -4/Archives | Discovered new exit (range 22) 10189 | -4/Archives | Unable to access archive contents 10197 | -4/Archives | Discovered new exit (range 22) 10208 | -4/Archives | Unable to access archive contents 10216 | -4/Archives | Discovered new exit (range 22) 10226 | -4/Archives | Unable to access archive contents 10251 | -4/Archives | Entered Hub_04(d) 10584 | -4/Hub_04(d) | Discovered new exit (range 3) 10655 | -4/Hub_04(d) | Build established: Scavenger-Gunner 10666 | -4/Hub_04(d) | Network Hub disabled 10731 | -4/Hub_04(d) | System corruption reached 10% 10741 | -4/Hub_04(d) | Entered Research 10741 | -3/Research | Evolved 2 slots: Utility x1, Weapon x1 10817 | -3/Research | Discovered new exit (range 14) 10966 | -3/Research | Identified exit to Research 11024 | -3/Research | Entered another Research area 11024 | -2/Research | Evolved 2 slots: Utility x1, Weapon x1 11213 | -2/Research | Discovered new exit (range 4) 11225 | -2/Research | Identified exit to Testing 11325 | -2/Research | Build established: Scavenger-Executioner 12319 | -2/Research | Identified exit to Access 12359 | -2/Research | Spotted B-90 Cyclops 12484 | -2/Research | Crushed by falling debris 12542 | -2/Research | Lost 3 parts (2u1w) 12667 | -2/Research | Entered Access 12667 | -1/Access | Evolved 2 slots: Weapon x2 12768 | -1/Access | Spotted B-99 Colossus 13550 | -1/Access | Identified exit to Surface 14202 | -1/Access | Spotted B-99 Colossus 14210 | -1/Access | First assault squad dispatched 14211 | -1/Access | Destroyed 20 combat bots 14237 | -1/Access | Destroyed B-99 Colossus 14283 | -1/Access | Spotted B-99 Colossus 14287 | -1/Access | Spotted B-99 Colossus 14389 | -1/Access | Garrison activated, responded to threat 14475 | -1/Access | Core integrity fell below 50% 14512 | -1/Access | Released all parts (6) 14542 | -1/Access | Lost 25 parts (3p4n8u10w) 14646 | -1/Access | Core integrity fell below 20% 14693 | -1/Access | Lost 3 parts (1n2w) 14738 | -1/Access | System corruption reached 10% 14760 | -1/Access | Released all parts (5) 14762 | -1/Access | Destroyed by H-88 Terminator with Heavy Machine Gun Last Messages --------------- 14747_ H-88 Terminator suffers critical hit (Destroy). 14747_ H-88 Terminator destroyed. 14747_ Slug penetrates Wall. 14747_ K-01 Serf collects debris. 14750_ Penetrated by Slug. 14750_ Slug penetrates K-01 Serf. 14750_ K-01 Serf suffers critical hit (Destroy). 14750_ K-01 Serf collects debris. 14755_ Penetrated by Slug. 14755_ Phase Gun destroyed. 14758_ ,JOV7HU F 6UYRQXI=JNAP#RZZM9HZ#TWYCI 14758_ K-01 Serf collects debris. 14758_ Penetrated by Slug. 14758_ Hvy. Laser destroyed. 14760_ Released Lrn. Terrain Scanner. 14760_ Released Sml. Battery. 14760_ Released Adv. Heat Sink. 14760_ Released Mic. Fission Core. 14762_ Penetrated by Slug. [Achievement: Punisher] Map ----- +----------------------------------------------------+ | ??????????# ""#?????????# % =[#????????## | | ??????????# ""########??# %%[%%#????????## | | ??????????# T# #??# % %*#????????## | | ??????????# ""# #??# % %#?????????# | | ??????????# ""# ##?#""""""""""#?????????# | | ??????????# ""# #?#?????????????????????# | | ??????????# # !* #?????"?????????????????# | | ??????????# # #???????????????????????# | | ??????????###+########+###??????????? ??????????# | | ????????????# #?????????????????????????# | | ????????????# #??????????? ?????????#???# | | ???## ### #??????????"????????#?????# | | #??????????